Cogmind - Beta 16.1 @@@ ROGUE MODE // 2026.04.13 @ 11:42:27 Player: Dogchiho Result: Destroyed by S-10 Pest with Light Assault Rifle Performance ------------- Evolutions (0) 0 Regions Visited (2) 400 Robots Destroyed (28) 140 Value Destroyed (584) 584 Prototype IDs (0) 0 Alien Tech Used (0) 0 Bonus (0) 0 TOTAL SCORE: 1124 Bonus ------- None Cogmind --------- Core Integrity 0/250 Matter 240/300 Energy 45/100 System Corruption 0% Temperature Cool (0) Movement Walking (190) Ox1 Location -10/Mines Parts ------- > --- POWER (1) -------- (None) > --- PROPULSION (2) --- Aluminum Leg Aluminum Leg > --- UTILITY (2) ------ High-capacity Storage Unit Signal Interpreter > --- WEAPON (2) ------- (None) > --- INVENTORY (20) --- Light Treads Light Treads Aluminum Leg Compact Wheel Improved Terrain Scanner Peak State ------------ > --- POWER ------------ Light Nuclear Core > --- PROPULSION ------- Light Treads Light Treads > --- UTILITY ---------- Small Storage Unit Improved Terrain Scanner > --- WEAPON ----------- Light Assault Rifle Light Assault Rifle > --- INVENTORY -------- Ion Engine Aluminum Leg Aluminum Leg Aluminum Leg Compact Wheel Compact Wheel Assault Rifle Mining Laser [Rating: 11] Favorites ----------- Power Ion Engine Engine Ion Engine Power Core Light Nuclear Core Propulsion Light Treads Treads Light Treads Leg Aluminum Leg Wheel Compact Wheel Utility Small Storage Unit Device Sensor Array Storage Small Storage Unit Processor Signal Interpreter Weapon Light Assault Rifle Ballistic Gun Light Assault Rifle Special Weapon Mining Laser Build | -11 -10 -10 ------- Run | Yrd Mat Min Slots Evolved . | . . . Power . | . . . Propulsion . | . . . Utility . | . . . Weapon . | . . . Parts Attached 22 | 8 10 4 Power 4 | 1 3 . Engine 3 | 1 2 . Core 1 | . 1 . Reactor . | . . . Propulsion 8 | 3 3 2 Treads 4 | 2 2 . Leg 2 | . . 2 Wheel 2 | 1 1 . Hover . | . . . Flight . | . . . Utility 5 | 2 2 1 Device 2 | 1 1 . Storage 2 | 1 1 . Processor 1 | . . 1 Hackware . | . . . Protection . | . . . Artifact . | . . . Weapon 5 | 2 2 1 Energy Gun . | . . . Energy Cannon . | . . . Ballistic Gun 4 | 2 2 . Ballistic Cannon . | . . . Launcher . | . . . Special Weapon 1 | . . 1 Impact Weapon . | . . . Slashing Weapon . | . . . Piercing Weapon . | . . . Special Melee Weapon . | . . . Unidentified Prototypes . | . . . Parts Lost 6 | . 1 5 Power 1 | . . 1 Propulsion 1 | . . 1 Utility 1 | . . 1 Weapon 3 | . 1 2 Highest Loss Streak 5 | . 1 5 To Critical Strikes . | . . . Average Backups 6 | 5 7 7 Power . | . . . Propulsion 4 | 3 4 5 Utility . | . . 2 Weapon 1 | 1 1 . Tool/Special . | . . . Unused Backups 3 | 2 . 1 Power 2 | 2 . . Propulsion 1 | . . 1 Utility . | . . . Weapon . | . . . Tool/Special . | . . . Average Slot Usage (%) 99 | . 99 89 Engine 9 | . 9 10 Core 4 | . 4 . Treads 23 | . 24 . Wheel 4 | . 4 24 Device 13 | . 14 10 Storage 14 | . 14 14 Ballistic Gun 27 | . 27 14 Peak Build Rating 11 | 9 11 7 Average Rating 8 | 7 8 6 On Entrance 5 | . 9 7 Avg Prop Armor Cover (%) . | . . . Naked Turns . | . . . Heaviest Build 49 | 13 49 48 Greatest Support 40 | 40 40 32 Greatest Overweight (x) 1 | . 1 1 Average Overweight (x) . | . . 1 Largest Inventory Capacity 20 | 8 20 20 Average Capacity 11 | 7 12 20 Most Carried 9 | 7 9 7 Average Carried 6 | 5 7 6 Final Capacity 20 | 8 20 20 Final Carried 8 | 6 8 5 Class Distribution -------------------- 100% | Mutant Dominant Class ---------------- Mutant | -10/Materials Mutant | -10/Mines Resources | -11 -10 -10 ----------- Run | Yrd Mat Min Matter Collected 593 | 308 285 . Remotely . | . . . Salvage Created 769 | 130 639 . Parts 55 | 12 43 . Haulers Intercepted . | . . . Recyclers Shooed 1 | . 1 . Parts Field Recycled . | . . . Retrieved Matter . | . . . Parts Self-Destructed . | . . . Prevented . | . . . Parts Restored . | . . . Kills | -11 -10 -10 ------- Run | Yrd Mat Min Combat Hostiles Destroyed 21 | . 21 . Guns 21 | . 21 . Classes Destroyed 5 | 2 3 . Tunneler 5 | 5 . . Recycler 2 | 1 1 . Swarmer 9 | . 9 . Grunt 11 | . 11 . Subdweller 1 | . 1 . Best Kill Streak 4 | 2 4 . Combat Bots Only 4 | . 4 . Max Kills in Single Turn 2 | 1 2 . Gunslinging 1 | . 1 . Exploded . | . . . Melee . | . . . Uniques/NPCs Destroyed . | . . . Combat | -11 -10 -10 -------- Run | Yrd Mat Min Hostile Shots Fired 152 | . 126 26 Missed 41 | . 31 10 Hits 111 | . 95 16 Projectile 111 | . 95 16 Critical Strikes 1 | . 1 . Damage Taken 1167 | . 1041 126 Core 253 | . 227 26 Absorbed by Shields . | . . . Core Remaining (%) 100 | 100 . . Volleys Fired 97 | 14 77 6 Largest 2 | 2 2 1 Hottest 40 | 40 40 20 Shots Fired 182 | 28 148 6 Gun 182 | 28 148 6 Cannon . | . . . Launcher . | . . . Special . | . . . Kinetic 182 | 28 148 6 Thermal . | . . . Explosive . | . . . Electromagnetic . | . . . Robot Hit Streak 8 | 6 8 2 Robot Miss Streak 5 | 1 5 2 Penetration Max . | . . . Secondary Targets 1 | . 1 . Max Gunslinging Chain 1 | . 1 . Shots Hit Robots 107 | 15 90 2 Core Hits 45 | 7 38 . Critical Kills . | . . . Critical Parts Destroyed . | . . . Critical Strikes . | . . . Melee Attacks . | . . . Impact . | . . . Slashing . | . . . Piercing . | . . . Sneak Attacks . | . . . Combat Hostiles . | . . . Follow-up Attacks . | . . . Damage Inflicted 1105 | 154 937 14 Guns 995 | 123 858 14 Cannons . | . . . Explosions 69 | . 69 . Melee . | . . . Ramming 41 | 31 10 . Kinetic 995 | 123 858 14 Thermal . | . . . Explosive 69 | . 69 . Electromagnetic . | . . . Impact . | . . . Slashing . | . . . Piercing . | . . . Highest Corruption . | . . . Average Corruption . | . . . Corruption Purged . | . . . Corruption Blocked . | . . . Overload Shots . | . . . Overflow Damage . | . . . Projectiles . | . . . Explosions . | . . . Melee . | . . . Knockbacks . | . . . Impact . | . . . Kinetic . | . . . Secondary . | . . . Self-Inflicted Damage 47 | . 47 . Shots 1 | . 1 . Rammed 20 | 13 7 . Targets Rammed 23 | 16 7 . Kicked . | . . . Crushed 3 | 3 . . Highest Temperature 31 | . 31 . Average Temperature 8 | . 8 . Received Heat Transfer 387 | . 387 . Siege Activations . | . . . Martial Activations . | . . . Shielding Activations . | . . . Robots Disrupted . | . . . Combat Hostiles . | . . . Robots Corrupted . | . . . Combat Hostiles . | . . . Parts Fried . | . . . Impact Corruptions . | . . . Robots Melted . | . . . Combat Hostiles . | . . . Parts Melted . | . . . Heat Transferred . | . . . Parts Sabotaged . | . . . Parts Stolen . | . . . Parts Stripped . | . . . Power Chain Reactions . | . . . Alert | -11 -10 -10 ------- Run | Yrd Mat Min Maximum Alert Level . | . . . Low Security (%) 100 | 100 100 100 Level 1 . | . . . Level 2 . | . . . Level 3 . | . . . Level 4 . | . . . Level 5 . | . . . High Security . | . . . Max Security . | . . . Peak Influence 157 | 10 157 58 Initial 58 | . . 58 Average 53 | . 71 43 Influence Increases 617 | 30 587 . Destroy 0b10 Robot/C 400 | . 400 . Destroy 0b10 Robot/NC 35 | 30 5 . Destroy Leader 80 | . 80 . Successful Hack 28 | . 28 . Disable Machine 30 | . 30 . Destroy Structure 14 | . 14 . Partial Spotted 15 | . 15 . Lose Combat Pursuer 15 | . 15 . Influence Decreases 617 | 30 436 151 Entered New Map 93 | . . 93 Time Decay 466 | 30 426 10 Lost Part 58 | . 10 48 Squads Dispatched 5 | . 5 . Investigation 3 | . 3 . Extermination . | . . . Reinforcement 2 | . 2 . Assault . | . . . Garrison . | . . . Intercept . | . . . Searches Triggered . | . . . Construction Impeded . | . . . Haulers Reinforced . | . . . Active Scanning Responses . | . . . Cargo Convoy Interrupts . | . . . Stealth | -11 -10 -10 --------- Run | Yrd Mat Min Distress Signals 1 | . 1 . Communications Jammed . | . . . Distress Signals . | . . . Times Spotted 32 | . 29 3 Peak Tracking Total 4 | . 4 3 Tactical Retreats 2 | . 2 . Traps | -11 -10 -10 ------- Run | Yrd Mat Min Traps Triggered 1 | . 1 . Indirectly . | . . . Trap Hack Attempts . | . . . Triggered . | . . . Disarmed . | . . . Reprogrammed . | . . . Reused . | . . . Traps Extracted . | . . . Installed . | . . . Triggered . | . . . Machines | -11 -10 -10 ---------- Run | Yrd Mat Min Machines Disabled 2 | . 2 . Max in Single Turn 2 | . 2 . Machines Repaired . | . . . Machines Dismantled . | . . . Machines Sabotaged . | . . . Overloaded Fab Kills . | . . . Hacking | -11 -10 -10 --------- Run | Yrd Mat Min Machines Accessed 5 | . 5 . Terminals 5 | . 5 . Fabricators . | . . . Repair Stations . | . . . Recycling Units . | . . . Scanalyzers . | . . . Garrison Access . | . . . Total Hacks 12 | . 12 . Successful 8 | . 8 . Failed 4 | . 4 . Catastrophic . | . . . Database Lockouts . | . . . Manual 3 | . 3 . Terminals 12 | . 12 . Fabricators . | . . . Repair Stations . | . . . Recycling Units . | . . . Scanalyzers . | . . . Garrison Access . | . . . Terminal Hacks 8 | . 8 . Record 1 | . 1 . Robot Analysis 1 | . 1 . Emergency Access Points 2 | . 2 . Dispatch Records 1 | . 1 . Maintenance Status 1 | . 1 . Patrol Status 1 | . 1 . Zone Layout 1 | . 1 . Fabricator Hacks . | . . . Repair Station Hacks . | . . . Recycling Unit Hacks . | . . . Scanalyzer . | . . . Garrison Access Hacks . | . . . Unauthorized Hacks . | . . . Terminals . | . . . Fabricators . | . . . Repair Stations . | . . . Recycling Units . | . . . Scanalyzers . | . . . Garrison Access . | . . . Data Cores Recovered . | . . . Used . | . . . Hacking Detections 4 | . 4 . Full Trace Events . | . . . Feedback Events . | . . . Feedback Blocked . | . . . Robot Schematics Acquired . | . . . Robots Built . | . . . Authchips . | . . . Time . | . . . Total Robot Build Rating . | . . . Part Schematics Acquired . | . . . Parts Built . | . . . Authchips . | . . . Time . | . . . Total Part Build Rating . | . . . Part Studies Acquired . | . . . Parts Repaired . | . . . Time . | . . . Parts Recycled . | . . . Recycled Matter . | . . . Retrieved Matter . | . . . Retrieved Components . | . . . Parts Scanalyzed . | . . . Part Schematics Acquired . | . . . Parts Damaged . | . . . Bothacking | -11 -10 -10 ------------ Run | Yrd Mat Min Used RIF Installer . | . . . Robots Hacked . | . . . Non-combat . | . . . Combat . | . . . Robot Hacks Applied . | . . . Relay Couplers Released . | . . . Fabnet Peak Effective % . | . . . Robots Rewired . | . . . Allies Hacked . | . . . Hacks Repelled . | . . . Allies | -11 -10 -10 -------- Run | Yrd Mat Min Total Allies . | . . . Largest Group . | . . . Highest-Rated Group . | . . . Highest-Rated Ally . | . . . Total Orders . | . . . Ally Attacks . | . . . Total Damage . | . . . Kills . | . . . Allies Corrupted . | . . . Allies Melted . | . . . Intel | -11 -10 -10 ------- Run | Yrd Mat Min Active Infowar (turns) 1380 | 252 1110 18 Sensors 775 | . 757 18 Terrain 605 | 252 353 . Robot Analysis Total 1 | . 1 . Derelict Logs Recovered . | . . . Drone Launches . | . . . Drone Recoveries . | . . . Exploration | -11 -10 -10 ------------- Run | Yrd Mat Min Turns Passed 1504 | 363 1110 31 Spaces Moved 706 | 183 509 14 Core 13 | 13 . . Treads 580 | 170 410 . Legs . | . . . Wheels 113 | . 99 14 Hover . | . . . Flight . | . . . Fastest Speed 50 | 50 115 115 Average Speed 162 | 152 167 115 Slowest Speed 240 | 160 240 115 Overloaded Moves . | . . . Propulsion Burnouts . | . . . Robots Hopped . | . . . Potential Cave-ins . | . . . Cave-ins Triggered . | . . . Exploration Rate (%) 33 | 7 83 10 Regions Visited 2 Branch Regions 1 Pre-discovered Areas . | . . . Known Exits Taken . | . . . Unknown Exits Taken 2 | 1 1 . Scrap Searched . | . . . Spaces Dug . | . . . Terrain Destroyed 12 | . 12 . Melee . | . . . Projectile . | . . . AOE 12 | . 12 . Terrain Rammed . | . . . Walls Destroyed . | . . . Machines Disabled . | . . . Actions | -11 -10 -10 --------- Run | Yrd Mat Min Total 897 | 237 636 24 Wait 15 | . 15 . Move 704 | 182 508 14 Hop . | . . . Pick Up 25 | 15 10 . Fast Attach . | . . . Attach 10 | 7 . 3 Detach . | . . . Swap 13 | 1 11 1 Drop 10 | 2 8 . Fire 97 | 14 77 6 Melee . | . . . Ram . | . . . Kick . | . . . Crush 23 | 16 7 . Escape Stasis . | . . . Rewire . | . . . Trap . | . . . Miscellaneous . | . . . Route ------- -11/Scrapyard -10/Materials (discovered 4 exits: [*Mat x3] / [*Min]) -10/Mines History --------- Turn | Location | Event 10 | -11/Scrapyard | Discovered new exit (range 14) 364 | -11/Scrapyard | Entered Materials 365 | -10/Materials | Build established: Mutant 568 | -10/Materials | Discovered new exit (range 3) 669 | -10/Materials | Discovered new exit (range 15) 996 | -10/Materials | Discovered new exit (range 13) 1064 | -10/Materials | Derelicts attacked the area 1305 | -10/Materials | Core integrity fell below 50% 1435 | -10/Materials | Core integrity fell below 20% 1456 | -10/Materials | Discovered new exit (range 16) 1474 | -10/Materials | Entered Mines 1505 | -10/Mines | Destroyed by S-10 Pest with Light Assault Rifle Last Messages --------------- Lgt. Ion Engine tumbles out of recycling unit. Connecting with Terminal... >>Access(Emergency) Found 1 emergency access door: (15,52) Map updated. >>Enumerate(Maintenance) Found 10 registered maintenance bots. 5 Workers 2 Builders 3 Tunnelers Downloaded coordinate data. EXIT=FOUND LOCATION=UNKNOWN GOAL=ESCAPE Sensor Array destroyed. Ion Engine destroyed. Com. Wheel destroyed. Lgt. Assault Rifle destroyed. Mining Laser destroyed. Map ----- +----------------------------------------------------+ | ?????????????????????????????????????????????????? | | ?????????????????????????????????????????????????? | | ?????????????????????????????????????????????????? | | ?????????????????????????????????????????????????? | | ?????????????????????????????????????????????????? | | ?????????????????????????????????????????????????? | | ?????????????????????????????????????????????????? | | ?????????????????????????????????????????????????? | | ?????????????????????????????????????????????????? | | ???????????????????????????????#?????????????????? | | ??????????????????????????????# ?????????????????? | | ????????????????????????????## ?????????????????? | | ???????????????????????????? ?????????????????? | | ???????????????????????????? #?????????????????? | | ???????????????????????????? #?????????????????? | | ??????????? ???????????????? #?????????????????? | | ?????????? ??????????????#$ #?????????????????? | | ?????????? ##??????###### ###???????????????? | | ????????? ????## ##g ### #?????????? | | ?????????# ???# #????????? | | ???????????# ### """" #????????? | | ????????????# s """" #????????? | | ????????????# ss """" #????????? | | ???????????# #### ??????????? | | ????????? ????## ## ??????????? | | ????????? ## ???????##@ ##?# #???????????? | | ????????????????????????#####??? #????????????? | | ????????????????????????????????? #????????????? | | ?????????????????????????????????? #?????????????? | | ?????????????????????????????????????????????????? | | ?????????????????????????????????????????????????? | | ?????????????????????????????????????????????????? | | ?????????????????????????????????????????????????? | | ?????????????????????????????????????????????????? | | ?????????????????????????????????????????????????? | | ?????????????????????????????????????????????????? | | ?????????????????????????????????????????????????? | | ?????????????????????????????????????????????????? | | ?????????????????????????????????????????????????? | | ?????????????????????????????????????????????????? | | ?????????????????????????????????????????????????? | | | | | | | | | | | | | | | | | | | +----------------------------------------------------+ Best States ------------- Heat Dissipation 25 Energy Generation 14 Energy Capacity 250 Matter Stores 300 Matter Capacity 300 Sight Range 16 Robot Scan Range 14 Terrain Scan Range 16 Terrain Scan Density 10 Evasion (%) 40 Recoil Reduction 2 Item Schematics ----------------- None Robot Schematics ------------------ None Fabricated ------------ Nothing Repaired ---------- Nothing Studied --------- None Alien Tech Used ----------------- None Achievements -------------- None Challenges ------------ None Game ------ Seed GammaLongswordFist Manual? 0 Play Time 00:16:53 Cumulative 3.9 hours Start 2026.02.15 @ 07:21:42 End 2026.04.13 @ 11:42:27 Sessions 2 Manual Loads 0 Difficulty Rogue Special Mode None Game No. 10 Rogue 10 Adventurer 0 Explorer 0 Win Type - Total 0 Types 0/0/0/0/0/0/0/0/0/0 Lore% 7 Gallery% 5 Achievement% 6 Wizard Run 0 Options --------- Layout 1 ASCII 0 Keyboard 0 Movement Numpad Keybinds 0 Fullscreen 1 Font 24/X11 Map View 50x35 Zoom Use 0% Tactical HUD 0 Map Filters NONE Filters NONE Steam 1 RUN: 9c8fd205-efd2-40b0-a6ca-ea55f44982ab